bitfinex-derivatives/quotes_SOLF0:USTF0_20250311
["timestamp","ask_amount","ask_price","bid_price","bid_amount"]
[1741722563613,7.825,127.82,127.8,0.05707554]
[1741722563811,0.05879559,127.83,127.8,0.05707554]
[1741722565207,0.05879559,127.83,127.8,34.41707554]
[1741722566005,0.05879559,127.83,127.8,42.24287554]
[1741722566006,7.88309559,127.83,127.8,42.24287554]
[1741722566212,0.05879559,127.83,127.8,34.41707554]
[1741722566612,7.8255,127.81,127.8,34.41707554]
[1741722567115,0.05879559,127.83,127.8,34.41707554]
[1741722567610,7.8249,127.82,127.8,34.41707554]
[1741722568020,0.05879559,127.83,127.8,34.41707554]
[1741722568317,0.05879559,127.83,127.81,7.8254]
[1741722568519,0.05879559,127.83,127.8,34.41707554]
[1741722568815,0.05879559,127.83,127.81,7.8253]
[1741722569813,0.05879559,127.83,127.8,34.41707554]
[1741722569814,7.88319559,127.83,127.8,42.24287554]
[1741722570015,0.05879559,127.83,127.8,34.41707554]
[1741722570322,0.05879559,127.83,127.81,7.8252]
[1741722570521,0.05879559,127.83,127.8,34.41707554]
[1741722571314,0.05879559,127.83,127.81,7.8254]
[1741722571821,0.05879559,127.83,127.81,7.8249]
[1741722572014,0.05879559,127.83,127.8,34.41707554]
[1741722572215,258.1,127.86,127.8,34.41707554]
[1741722572419,7.8219,127.87,127.8,34.41707554]
[1741722572618,324.79067224,127.92,127.8,34.36]
[1741722572922,7.8225,127.86,127.8,34.36]
[1741722573124,324.79067224,127.92,127.8,34.36]
[1741722573420,7.8216,127.88,127.85,7.8229]
[1741722573621,0.05188655,127.87,127.85,7.87307994]
[1741722573821,324.40447224,127.92,127.85,7.87307994]
[1741722574323,0.0514986,127.9,127.85,0.05017994]
[1741722574719,7.8222,127.87,127.85,0.05017994]
[1741722574921,324.40447224,127.92,127.85,0.05017994]
[1741722575125,0.05023665,127.87,127.85,0.05017994]
[1741722575426,7.8224,127.86,127.85,0.05017994]
[1741722576725,7.8798599,127.87,127.85,0.05017994]
[1741722576930,0.0578599,127.87,127.85,0.05017994]
[1741722577225,7.8224,127.86,127.85,0.05017994]
[1741722577424,0.0578599,127.87,127.85,0.05017994]
[1741722578817,7.8798599,127.87,127.85,0.05017994]
[1741722579023,0.0578599,127.87,127.85,0.05017994]
[1741722579424,0.0578599,127.87,127.85,7.87277994]
[1741722579826,0.0578599,127.87,127.85,0.05017994]
[1741722580324,0.0578599,127.87,127.86,7.8224]
[1741722580524,0.0578599,127.87,127.85,0.05017994]
[1741722580924,0.0578599,127.87,127.85,7.87287994]
[1741722581124,7.8798599,127.87,127.85,0.05017994]
[1741722582421,0.0578599,127.87,127.85,0.05017994]
[1741722582623,0.0578599,127.87,127.86,34.32]
[1741722582820,0.0578599,127.87,127.86,42.1424]
[1741722583231,43.28682334,127.95,127.86,36.66]
[1741722583430,43.28682334,127.95,127.87,28.67807224]
[1741722583933,43.28682334,127.96,127.87,28.67807224]
[1741722584330,0.04999929,127.93,127.9,0.0493854]
[1741722584525,0.04999929,127.93,127.92,7.8187]
[1741722585222,43.28682334,127.96,127.91,34.32]
[1741722585427,43.28682334,127.96,127.91,36.7698]
[1741722586426,43.28682334,127.96,127.95,7.8169]
[1741722586733,43.28682334,127.96,127.95,34.32]
[1741722587525,110.42095822,127.97,127.95,34.32]
[1741722587731,58.28415953,127.97,127.95,34.32]
[1741722587935,58.28415953,127.97,127.95,42.1367]
[1741722588226,271.36880286,128.05,127.95,42.1367]
[1741722588427,271.36880286,128.05,127.95,34.32]
[1741722588628,28.67807224,128.02,127.99,0.05339716]
[1741722588830,30.24008411,128.04,127.99,0.05339716]
[1741722589032,7.813,128.02,127.99,0.05339716]
[1741722589236,30.24008411,128.04,127.99,0.05339716]
[1741722589630,7.8139,128.0,127.99,0.05339716]
[1741722589825,30.24008411,128.04,127.99,0.05339716]
[1741722590130,7.8139,128.0,127.99,0.05339716]
[1741722592328,7.8139,128.0,127.99,9.716e-05]
[1741722593033,10.392,128.0,127.99,9.716e-05]
[1741722593726,39.07007224,128.0,127.99,9.716e-05]
[1741722594940,7.8193,127.92,127.88,7.821]
[1741722595125,28.67807224,127.94,127.87,5.0993]
[1741722595328,28.67807224,127.92,127.85,34.28]
[1741722595528,7.8219,127.87,127.85,34.28]
[1741722595934,28.67807224,127.92,127.83,4.9453]
[1741722596141,0.05019139,127.87,127.85,0.04934885]
[1741722596434,28.67807224,127.9,127.85,0.04934885]
[1741722596635,0.05831486,127.87,127.85,0.04934885]
[1741722596835,0.05831486,127.87,127.84,34.28]
[1741722597031,7.8224,127.86,127.85,0.05908806]
[1741722597633,0.05831486,127.87,127.85,0.05908806]
[1741722597937,7.88011486,127.87,127.85,0.05908806]
[1741722598137,0.05831486,127.87,127.85,0.05908806]
[1741722600334,57.35614448,127.86,127.74,1.3611562]
[1741722600539,28.67807224,127.8,127.72,42.53601192]
[1741722600839,7.8304,127.73,127.72,42.53601192]
[1741722601035,257.98,127.77,127.72,42.53601192]
[1741722601238,7.8261,127.8,127.72,42.53601192]
[1741722601432,257.98,127.83,127.72,47.70611192]
[1741722601634,257.98,127.83,127.75,0.05438527]
[1741722601635,0.05381812,127.77,127.75,0.05438527]
[1741722601834,257.98,127.83,127.76,34.28]
[1741722602035,257.98,127.83,127.76,65.50847224]
[1741722602644,286.65807224,127.83,127.73,28.67807224]
[1741722602841,286.65807224,127.83,127.72,5.1701]
[1741722602842,7.8275,127.78,127.74,34.28]
[1741722603035,0.0592259,127.79,127.77,0.05829494]
[1741722603337,2.671,127.85,127.8,7.8259]
[1741722603540,258.04,127.89,127.78,36.9485]
[1741722603745,2.5367,127.88,127.8,28.67807224]
[1741722603945,2.5367,127.88,127.78,36.9485]
[1741722603946,258.04,127.89,127.79,2.666]
[1741722604132,258.04,127.89,127.8,28.67807224]
[1741722604543,258.04,127.89,127.83,0.05531498]
[1741722605042,28.67807224,127.87,127.83,0.05531498]
[1741722605641,258.04,127.89,127.83,0.05531498]
[1741722605830,2.5367,127.91,127.83,0.05531498]
[1741722606032,10.3561,127.91,127.83,2.6561]
[1741722606239,2.5367,127.91,127.83,2.6561]
[1741722606440,2.5367,127.91,127.86,0.04983621]
[1741722606835,263.1722,127.95,127.86,0.04983621]
[1741722607039,263.1722,127.95,127.86,7.8222]
[1741722607243,263.1722,127.95,127.89,0.05278164]
[1741722607639,28.67807224,127.93,127.83,2.6561]
[1741722607946,28.67807224,127.9,127.81,34.3]
[1741722608148,7.8213,127.88,127.81,34.3]
[1741722608342,5.0092,127.89,127.81,34.3]
[1741722608647,33.68727224,127.89,127.81,34.3]
[1741722608840,33.68727224,127.89,127.84,0.05532869]
[1741722608841,0.05308627,127.86,127.84,0.05532869]
[1741722610044,7.823,127.85,127.84,0.05532869]
[1741722610239,0.05308627,127.86,127.84,0.05532869]
[1741722612146,7.87588627,127.86,127.84,0.05532869]
[1741722612347,0.05308627,127.86,127.84,0.05532869]
[1741722613655,0.05308627,127.86,127.85,34.3]
[1741722613843,0.05308627,127.86,127.85,42.123]
[1741722614862,4.9539,127.94,127.87,7.8212]
[1741722615057,7.8192,127.92,127.85,36.8798]
[1741722615260,258.08,127.95,127.85,36.8798]
[1741722615658,7.8184,127.93,127.85,36.8798]
[1741722615964,258.08,127.95,127.85,36.8798]
[1741722616164,258.08,127.95,127.88,0.0570326]
[1741722616366,258.08,127.95,127.89,34.28]
[1741722616759,7.7357,127.97,127.91,0.05275589]
[1741722616960,7.8167,127.96,127.91,0.05275589]
[1741722617158,7.7357,127.97,127.91,0.05275589]
[1741722617361,286.75807224,128.01,127.91,0.05275589]
[1741722617568,258.08,128.01,127.95,7.8169]
[1741722617858,258.08,128.01,127.95,34.33354041]
[1741722618660,28.67807224,127.99,127.95,34.33354041]
[1741722618869,28.67807224,127.97,127.88,2.5679]
[1741722619065,7.8191,127.92,127.88,34.28]
[1741722619269,28.67807224,127.93,127.84,2.499]
[1741722619466,286.69807224,127.93,127.86,34.28]
[1741722619666,7.8213,127.88,127.85,34.28]
[1741722619863,28.67807224,127.91,127.85,34.28]
[1741722620061,7.4675,127.9,127.85,34.28]
[1741722620365,0.05332165,127.88,127.85,34.33776667]
[1741722620766,7.87482165,127.88,127.85,34.33776667]
[1741722622467,7.8219,127.87,127.85,34.33776667]
[1741722622664,0.05332165,127.88,127.85,34.33776667]
[1741722622968,7.87482165,127.88,127.85,34.33776667]
[1741722625061,7.87482165,127.88,127.85,42.16066667]
[1741722625261,28.73139389,127.88,127.82,34.28]
[1741722625466,28.67807224,127.88,127.82,34.28]
[1741722625667,28.67807224,127.88,127.82,42.1046]
[1741722626066,7.4675,127.9,127.82,34.28]
[1741722626567,0.05388753,127.87,127.85,0.055883]
[1741722626870,7.8224,127.86,127.85,0.055883]
[1741722627070,0.05388753,127.87,127.85,0.055883]
[1741722627768,0.05388753,127.87,127.86,34.28]
[1741722628160,0.05388753,127.87,127.86,42.1024]
[1741722628369,7.722,127.94,127.86,34.28]
[1741722629170,28.67807224,127.98,127.87,5.1314]
[1741722629360,2.6176,127.97,127.87,5.1314]
[1741722629565,0.05111824,127.91,127.89,0.0526748]
[1741722629864,0.05111824,127.91,127.9,34.28]
[1741722630061,0.05111824,127.91,127.9,42.1]
[1741722630667,2.6176,127.97,127.9,34.28]
[1741722631468,7.817,127.95,127.9,34.28]
[1741722631669,2.6176,127.97,127.91,0.05781303]
[1741722632169,2.6176,127.97,127.92,7.8182]
[1741722632670,2.6176,127.97,127.91,0.05781303]
[1741722633375,2.6176,127.97,127.93,7.8178]
[1741722633672,2.6176,127.97,127.9,34.28]
[1741722633673,2.6176,127.97,127.94,34.26]
[1741722633974,7.8168,127.96,127.94,34.3170855]
[1741722634170,263.1444,128.0,127.94,34.3170855]
[1741722634571,7.8155,127.98,127.95,7.8168]
[1741722634964,258.04,128.0,127.97,7.8152]
[1741722635169,258.04,128.0,127.94,34.26]
[1741722635363,258.04,128.0,127.97,0.0531037]
[1741722635565,258.04,128.0,127.97,34.3131037]
[1741722636666,7.8147,127.99,127.97,34.3131037]
[1741722637470,265.8542,128.0,127.97,42.1285037]
[1741722637669,258.04,128.0,127.97,34.3131037]
[1741722638173,7.8149,127.99,127.97,34.3131037]
[1741722638369,258.04,128.0,127.97,34.3131037]
[1741722638673,7.8146,127.99,127.97,34.3131037]
[1741722639279,7.8151,127.98,127.97,34.3131037]
[1741722639572,258.04,128.0,127.97,34.3131037]
[1741722640369,258.04,128.0,127.98,7.8148]
[1741722641069,265.8541,128.0,127.97,42.1286037]
[1741722641978,265.8541,128.0,127.97,34.3131037]
[1741722642273,1.56201187,128.04,127.97,34.3131037]
[1741722642776,7.8139,128.0,127.97,34.3131037]
[1741722643275,7.8136,128.01,127.98,7.8147]
[1741722643578,30.24008411,128.04,127.98,7.86843177]
[1741722643879,28.67807224,128.01,127.98,0.05373177]
[1741722644176,28.67807224,128.01,127.92,34.24]
[1741722644375,7.8177,127.94,127.91,34.24]
[1741722644674,28.67807224,127.98,127.87,15.82690298]
[1741722644977,28.67807224,127.95,127.88,34.24]
[1741722646573,0.05012813,127.93,127.88,34.24]
[1741722646874,0.05012813,127.93,127.9,0.05930973]
[1741722648570,7.8194,127.91,127.9,0.05930973]
[1741722649473,31.15007224,127.92,127.81,2.6202]
[1741722649675,28.67807224,127.89,127.81,2.6202]
[1741722649866,286.59807224,127.89,127.79,4.8094]
[1741722650177,28.67807224,127.86,127.79,34.24]
[1741722650574,0.05748806,127.84,127.81,0.0510855]
[1741722651780,0.05748806,127.84,127.82,7.8244]
[1741722651975,0.05748806,127.84,127.83,34.26]
[1741722652376,7.88108806,127.84,127.83,34.26]
[1741722652680,0.05748806,127.84,127.83,34.26]
[1741722653475,0.05748806,127.84,127.83,42.0842]
[1741722653673,0.05748806,127.84,127.83,34.26]
[1741722654175,0.05748806,127.84,127.83,42.0842]
[1741722654375,257.92,127.89,127.83,34.26]
[1741722655180,257.92,127.89,127.87,7.8213]
[1741722655381,2.472,127.92,127.88,34.26]
[1741722655573,0.054086,127.89,127.88,34.26]
[1741722655773,7.874686,127.89,127.88,34.26]
[1741722655974,0.054086,127.89,127.88,34.26]
[1741722656274,7.874686,127.89,127.88,34.26]
[1741722657079,0.054086,127.89,127.88,34.26]
[1741722657685,7.874686,127.89,127.88,34.26]
[1741722657979,0.054086,127.89,127.88,34.26]
[1741722658880,7.874686,127.89,127.88,34.26]
[1741722659076,7.874686,127.89,127.87,0.05940777]
[1741722659077,0.054086,127.89,127.87,0.05940777]
[1741722659573,7.8212,127.88,127.87,0.05940777]
[1741722659780,0.054086,127.89,127.87,0.05940777]
[1741722659980,0.054086,127.89,127.87,7.88100777]
[1741722660182,0.054086,127.89,127.87,0.05940777]
[1741722662578,0.054086,127.89,127.85,34.26]
[1741722662579,0.054086,127.89,127.77,28.67807224]
[1741722662784,258.04,127.89,127.77,36.16367224]
[1741722662980,265.8609,127.89,127.85,7.8226]
[1741722663177,258.04,127.89,127.83,34.26]
[1741722663585,7.8215,127.88,127.83,34.26]
[1741722663780,0.05575348,127.87,127.85,0.05084138]
[1741722664177,0.05575348,127.87,127.85,7.87364138]
[1741722664479,0.05575348,127.87,127.85,0.05084138]
[1741722664984,7.8224,127.86,127.85,0.05084138]
[1741722667183,0.05575348,127.87,127.86,7.8224]
[1741722667585,0.05575348,127.87,127.85,0.05084138]
[1741722667794,0.05575348,127.87,127.86,7.8224]
[1741722669782,0.05575348,127.87,127.85,0.05084138]
[1741722669981,7.8224,127.86,127.85,0.05084138]
[1741722672093,7.8251,127.82,127.8,34.26]
[1741722672284,258.06,127.87,127.8,34.26]
[1741722672792,28.67807224,127.86,127.79,34.26]
[1741722673094,7.8233,127.85,127.77,34.26]
[1741722673286,0.05323897,127.84,127.81,0.05545228]
[1741722674593,0.05323897,127.84,127.81,7.88085228]
[1741722674892,0.05323897,127.84,127.81,0.05545228]
[1741722675095,0.05323897,127.84,127.81,34.31545228]
[1741722677295,0.05323897,127.84,127.83,7.8242]
[1741722677493,0.05323897,127.84,127.81,34.31545228]
[1741722678497,0.05323897,127.84,127.83,7.8242]
[1741722678690,0.05323897,127.84,127.81,34.31545228]
[1741722679294,0.05323897,127.84,127.81,0.05545228]
[1741722679688,28.73131121,127.84,127.81,5.228e-05]
[1741722679890,2.4218,127.83,127.81,5.228e-05]
[1741722680697,7.8249,127.82,127.81,5.228e-05]
[1741722681298,12.8093,127.82,127.81,5.228e-05]
[1741722681803,7.8279,127.77,127.73,34.26]
[1741722682099,28.67807224,127.81,127.73,34.26]
[1741722682297,7.8287,127.76,127.73,34.26]
[1741722682898,7.8287,127.76,127.73,34.31140196]
[1741722682899,0.05834383,127.76,127.73,34.31140196]
[1741722683388,7.88704383,127.76,127.73,7.88140196]
[1741722683593,7.88704383,127.76,127.74,34.26]
[1741722683802,0.05834383,127.76,127.74,34.26]
[1741722685400,7.8298,127.74,127.73,0.05140196]
[1741722685596,0.05834383,127.76,127.73,0.05140196]
[1741722686700,28.67807224,127.75,127.64,347.64996406]
[1741722686897,4.9223,127.74,127.66,44.89400298]
[1741722687800,7.8318,127.71,127.67,7.834]
[1741722688004,7.8855746,127.71,127.69,0.05233324]
[1741722688207,0.0537746,127.71,127.69,0.05233324]
[1741722688605,7.8853746,127.71,127.69,0.05233324]
[1741722689098,0.0537746,127.71,127.69,0.05233324]
[1741722689307,258.2737746,127.71,127.65,34.26]
[1741722689603,260.8495746,127.71,127.64,7.4337]
[1741722689808,7.8333,127.69,127.65,7.835]
[1741722690301,7.8333,127.69,127.66,0.05691999]
[1741722690702,7.89110607,127.69,127.66,0.05691999]
[1741722690907,0.05780607,127.69,127.66,7.89131999]
[1741722691108,0.05780607,127.69,127.66,0.05691999]
[1741722692111,258.28,127.77,127.66,0.05691999]
[1741722692606,286.95807224,127.77,127.65,34.28]
[1741722693303,286.95807224,127.77,127.65,62.95807224]
[1741722693507,0.05534914,127.72,127.7,0.05989204]
[1741722693709,7.8292,127.75,127.71,7.8311]
[1741722693903,0.05837384,127.72,127.71,7.8311]
[1741722694100,258.28,127.77,127.69,34.28]
[1741722694307,7.88422593,127.73,127.7,0.05825677]
[1741722694701,0.05332593,127.73,127.7,0.05825677]
[1741722695906,7.8316,127.71,127.7,0.05825677]
[1741722696707,7.8316,127.71,127.65,7.835]
[1741722696708,28.67807224,127.72,127.64,7.4337]
[1741722696921,2.5032,127.71,127.59,28.67807224]
[1741722697122,36.7832,127.71,127.57,7.5521]
[1741722697419,28.67807224,127.69,127.58,35.70293794]
[1741722697621,286.99807224,127.69,127.62,7.8365]
[1741722697820,7.8344,127.67,127.63,34.28]
[1741722698020,7.89141865,127.67,127.64,0.05299119]
[1741722698222,0.05701865,127.67,127.64,0.05299119]
[1741722700118,7.8353,127.65,127.64,0.05299119]
[1741722700423,0.05701865,127.67,127.64,0.05299119]
[1741722700617,7.89141865,127.67,127.64,0.05299119]
[1741722701010,0.05701865,127.67,127.64,0.05299119]
[1741722702627,0.05701865,127.67,127.66,7.8347]
[1741722702819,0.05701865,127.67,127.66,42.1147]
[1741722704426,0.05701865,127.67,127.66,34.28]
[1741722705224,7.89111865,127.67,127.66,34.28]
[1741722705525,0.05701865,127.67,127.64,0.05299119]
[1741722705725,7.8351,127.66,127.64,0.05299119]
[1741722705917,0.05701865,127.67,127.64,0.05299119]
[1741722706424,0.05701865,127.67,127.61,34.28]
[1741722706624,31.28697224,127.68,127.6,34.28]
[1741722707016,31.28697224,127.68,127.57,7.5967]
[1741722707226,31.28697224,127.68,127.58,34.28]
[1741722707420,7.8362,127.64,127.61,7.8373]
[1741722707620,7.8900089,127.64,127.61,7.88973919]
[1741722707823,0.0538089,127.64,127.61,0.05243919]
[1741722708427,7.8901089,127.64,127.61,7.88983919]
[1741722709129,7.8901089,127.64,127.61,0.05243919]
[1741722709331,0.0538089,127.64,127.61,0.05243919]
[1741722709828,0.0538089,127.64,127.61,7.89003919]
[1741722710222,0.0538089,127.64,127.61,0.05243919]
[1741722710729,0.0538089,127.64,127.62,34.28]
[1741722711325,7.8902089,127.64,127.62,34.28]
[1741722711730,0.0538089,127.64,127.62,34.28]
[1741722712426,0.0538089,127.64,127.63,7.8365]
[1741722712929,258.32,127.69,127.68,7.8334]
[1741722713429,5.08,127.72,127.66,34.28]
[1741722713826,258.48,127.75,127.66,34.28]
[1741722714026,258.48,127.75,127.66,62.95807224]
[1741722714224,0.05056856,127.72,127.69,0.05405452]
[1741722714424,0.05056856,127.72,127.7,34.28]
[1741722716436,0.05056856,127.72,127.71,7.8316]
[1741722716829,7.3585,127.79,127.7,34.28]
[1741722717024,7.8292,127.75,127.7,41.8025]
[1741722717225,7.3585,127.79,127.7,41.8025]
[1741722717635,7.3585,127.79,127.73,7.8299]
[1741722717835,7.3585,127.79,127.74,34.28]
[1741722718033,0.0500988,127.77,127.75,0.05834255]
[1741722718332,7.8291,127.76,127.75,0.05834255]
[1741722718535,0.0500988,127.77,127.75,0.05834255]
[1741722718734,0.0500988,127.77,127.76,7.8285]
[1741722719035,0.0500988,127.77,127.75,0.05834255]
[1741722720033,7.8285,127.76,127.75,0.05834255]
[1741722721034,0.0500988,127.77,127.75,0.05834255]
[1741722721531,7.8285,127.76,127.75,0.05834255]
[1741722722349,7.8285,127.76,127.75,4.255e-05]
[1741722722535,2.34,127.76,127.66,47.50891192]
[1741722722838,62.95807224,127.76,127.66,81.78891192]
[1741722723536,7.8327,127.7,127.66,81.78891192]
[1741722723738,62.95807224,127.76,127.66,81.78891192]
[1741722723932,0.05505287,127.69,127.67,0.05105091]
[1741722724139,62.95807224,127.76,127.66,81.78891192]
[1741722724339,0.05227739,127.69,127.66,0.05017733]
[1741722724541,0.05236486,127.69,127.62,28.67807224]
[1741722724740,7.8339,127.68,127.66,0.05668719]
[1741722724937,0.05236486,127.69,127.67,34.26]
[1741722725848,7.8341,127.67,127.66,0.05668719]
[1741722726343,7.8377,127.61,127.6,34.26]
[1741722726547,28.67807224,127.67,127.6,34.26]
[1741722726937,7.8353,127.65,127.6,34.26]
[1741722727240,28.67807224,127.67,127.6,34.26]
[1741722727443,0.05070171,127.64,127.61,0.05858742]
[1741722727633,7.8371,127.62,127.61,0.05858742]
[1741722727839,7.8371,127.62,127.61,8.742e-05]
[1741722728953,5.0866,127.63,127.61,8.742e-05]
[1741722729244,258.43070171,127.64,127.61,8.742e-05]
[1741722730237,258.43070171,127.64,127.61,34.28008742]
[1741722730439,266.26670171,127.64,127.61,34.28008742]
[1741722730647,258.43070171,127.64,127.61,34.28008742]
[1741722731549,0.05070171,127.64,127.61,34.28008742]
[1741722732142,7.8369,127.63,127.61,8.742e-05]
[1741722732347,0.05070171,127.64,127.61,8.742e-05]
[1741722733348,7.8371,127.62,127.61,8.742e-05]
[1741722733550,2.598,127.63,127.61,8.742e-05]
[1741722733751,0.05070171,127.64,127.61,8.742e-05]
[1741722734745,0.05070171,127.64,127.61,7.83778742]
[1741722734951,28.67807224,127.72,127.62,34.28]
[1741722735344,7.8182,127.73,127.62,34.28]
[1741722735545,7.8315,127.72,127.63,31.12427224]
[1741722735846,7.8182,127.73,127.63,31.12427224]
[1741722736156,0.0516225,127.69,127.67,0.0554863]
[1741722736543,0.0516225,127.69,127.68,7.8334]
[1741722737652,258.5,127.75,127.67,0.0554863]
[1741722737950,266.2489,127.75,127.66,34.28]
[1741722738451,7.8326,127.7,127.66,34.28]
[1741722738953,0.05593237,127.69,127.67,0.05492189]
[1741722741040,0.05593237,127.69,127.67,7.88902189]
[1741722741245,0.05593237,127.69,127.67,0.05492189]
[1741722742345,0.05593237,127.69,127.68,7.8334]
[1741722744051,0.05593237,127.69,127.67,7.88862189]
[1741722744247,0.05593237,127.69,127.67,0.05492189]
[1741722745250,0.05593237,127.69,127.67,7.88862189]
[1741722745454,0.05593237,127.69,127.67,0.05492189]
[1741722745651,0.05593237,127.69,127.68,7.8334]
[1741722746052,266.2489,127.75,127.67,33.74779413]
[1741722746252,263.609,127.75,127.69,7.8325]
[1741722746447,263.609,127.75,127.7,34.26]
[1741722747350,0.05045084,127.74,127.71,0.05017971]
[1741722747546,7.831,127.72,127.71,0.05017971]
[1741722750255,0.05045084,127.74,127.67,34.26]
[1741722750453,7.8332,127.69,127.67,34.26]
[1741722750857,7.8332,127.69,127.66,7.8344]
[1741722751162,7.8332,127.69,127.67,34.26]
[1741722751460,326.54707224,127.75,127.66,7.8346]
[1741722751658,0.04999457,127.69,127.67,0.05075106]
[1741722751859,28.67807224,127.72,127.63,5.1442]
[1741722752159,28.73546874,127.69,127.66,0.05692236]
[1741722752359,2.5809,127.68,127.59,34.26]
[1741722752567,7.8374,127.62,127.59,34.26]
[1741722752860,258.42,127.67,127.59,34.26]
[1741722753560,7.8365,127.63,127.62,0.0564891]
[1741722754162,0.05990855,127.64,127.62,0.0564891]
[1741722754760,0.05990855,127.64,127.62,7.8935891]
[1741722754961,0.05990855,127.64,127.62,0.0564891]
[1741722755264,7.89580855,127.64,127.62,0.0564891]
[1741722755468,0.05990855,127.64,127.62,0.0564891]
[1741722756458,0.05990855,127.64,127.62,7.8935891]
[1741722756858,0.05990855,127.64,127.63,7.8365]
[1741722757265,2.5135,127.7,127.62,28.73456134]
[1741722757564,2.5135,127.7,127.62,31.35677224]
[1741722758165,2.4497,127.71,127.62,31.35677224]
[1741722758365,2.5809,127.72,127.62,31.35677224]
[1741722758561,0.05233035,127.68,127.65,0.05581779]
[1741722758761,0.05233035,127.68,127.66,34.26]
[1741722759162,0.05233035,127.68,127.67,7.8341]
[1741722759474,0.05233035,127.68,127.66,34.26]
[1741722759768,0.05233035,127.68,127.65,0.05581779]
[1741722760163,7.8347,127.66,127.65,0.05581779]
[1741722760871,0.05233035,127.68,127.65,0.05581779]
[1741722761269,0.05233035,127.68,127.65,7.89101779]
[1741722761477,0.05233035,127.68,127.65,0.05581779]
[1741722762873,7.88623035,127.68,127.65,0.05581779]
[1741722763175,0.05233035,127.68,127.65,0.05581779]
[1741722767874,7.8347,127.66,127.65,0.05581779]
[1741722769071,192.0,127.65,127.56,42.53601192]
[1741722769276,287.15807224,127.64,127.56,42.53601192]
[1741722770270,7.8402,127.57,127.56,42.53601192]
[1741722770881,7.8402,127.57,127.55,21.38139371]
[1741722771473,7.89106097,127.58,127.55,55.64139371]
[1741722772181,0.05136097,127.58,127.55,55.64139371]
[1741722773081,0.05136097,127.58,127.55,84.31946595]
[1741722773281,258.48,127.64,127.56,2.641]
[1741722773476,258.48,127.64,127.57,2.4979]
[1741722773884,7.8372,127.62,127.57,10.3378]
[1741722774082,7.8372,127.62,127.57,2.4979]
[1741722774284,258.48,127.64,127.57,2.4979]
[1741722774489,0.0525571,127.61,127.58,0.05788928]
[1741722774690,0.0525571,127.61,127.59,34.26]
[1741722775089,7.8384,127.6,127.59,34.26]
[1741722778391,7.8905571,127.61,127.59,34.26]
[1741722778787,0.0525571,127.61,127.59,34.26]
[1741722778991,0.0525571,127.61,127.59,42.0985]
[1741722779191,0.0525571,127.61,127.59,34.26]
[1741722779594,258.48,127.64,127.59,34.26]
[1741722780090,7.837,127.63,127.6,7.838]
[1741722780291,258.48,127.64,127.59,34.26]
[1741722780789,7.88778121,127.63,127.6,7.88767249]
[1741722781189,7.88758121,127.63,127.6,0.04967249]
[1741722781387,0.05098121,127.63,127.6,0.04967249]
[1741722781792,7.8371,127.62,127.6,0.04967249]
[1741722782189,0.05098121,127.63,127.6,0.04967249]
[1741722782691,7.8377,127.61,127.6,0.04967249]
[1741722782893,0.05098121,127.63,127.6,0.04967249]
[1741722783891,0.05098121,127.63,127.62,7.8371]
[1741722784897,7.8338,127.68,127.65,7.8351]
[1741722785095,258.56,127.7,127.65,42.0751]
[1741722785297,258.56,127.7,127.65,34.24]
[1741722785597,7.8347,127.66,127.65,34.24]
[1741722786093,7.88929008,127.67,127.65,34.24]
[1741722786289,0.05489008,127.67,127.65,34.24]
[1741722786494,0.05489008,127.67,127.66,7.8347]
[1741722787192,0.05489008,127.67,127.65,42.0749]
[1741722787587,0.05489008,127.67,127.65,34.24]
[1741722787889,0.05489008,127.67,127.64,0.05695892]
[1741722788092,28.67807224,127.65,127.59,34.24]
[1741722788288,28.67807224,127.65,127.59,42.0789]
[1741722788491,28.67807224,127.65,127.59,34.24]
[1741722788997,7.8374,127.62,127.59,34.24]
[1741722789196,0.0585788,127.63,127.61,0.05727263]
[1741722789995,7.8954788,127.63,127.61,0.05727263]
[1741722790195,0.0585788,127.63,127.61,0.05727263]
[1741722790598,7.8371,127.62,127.61,0.05727263]
[1741722791196,0.0585788,127.63,127.61,0.05727263]
[1741722791496,0.0585788,127.63,127.61,7.89447263]
[1741722791988,0.0585788,127.63,127.61,0.05727263]